bitfinex-derivatives/quotes_ETHF0:USTF0_20260204
["timestamp","ask_amount","ask_price","bid_price","bid_amount"]
[1770188485668,0.00181194,2275.3,2274.8,0.11417273]
[1770188486068,11.99440155,2275.2,2274.9,4.3928]
[1770188486268,11.99999687,2275.2,2275.0,4.3928]
[1770188486467,11.99999687,2275.2,2274.9,4.3928]
[1770188486970,11.99999687,2275.2,2275.0,4.3928]
[1770188487269,12.00236206,2275.2,2274.9,4.3928]
[1770188487462,11.99999687,2275.2,2274.9,4.3928]
[1770188487763,11.99999687,2275.2,2274.8,0.11417273]
[1770188487970,0.00236519,2275.1,2274.8,0.11180754]
[1770188488268,11.99999687,2275.2,2274.8,0.11180754]
[1770188488968,11.99999687,2275.2,2274.8,0.27962843]
[1770188489169,11.99999687,2275.2,2274.9,4.15710174]
[1770188489869,12.00115161,2275.2,2274.9,4.15710174]
[1770188490564,12.00115161,2275.2,2275.1,0.16782089]
[1770188490565,7.97527846,2275.2,2275.1,0.16782089]
[1770188490772,0.00115474,2275.8,2275.1,4.32492263]
[1770188490971,0.00115474,2275.8,2275.2,0.1670235]
[1770188491172,3.8125814,2275.7,2275.2,0.1670235]
[1770188491368,0.00274953,2276.0,2275.2,0.1670235]
[1770188491564,0.00274953,2275.8,2275.2,0.1670235]
[1770188491868,0.00654233,2275.8,2275.2,0.1670235]
[1770188493270,3.8125814,2275.7,2275.1,0.10641954]
[1770188493470,3.8125814,2275.7,2274.8,0.00176754]
[1770188493868,3.8125814,2275.7,2274.8,0.1701658]
[1770188494674,5.2543249,2275.7,2274.8,0.00176754]
[1770188496470,1.463,2275.6,2274.4,0.16804159]
[1770188496672,1.4417435,2274.8,2273.9,0.16804159]
[1770188496880,1.4417435,2274.8,2273.7,0.27814159]
[1770188497077,3.8125814,2274.7,2273.7,0.27814159]
[1770188497470,3.8125814,2274.7,2273.7,0.28371389]
[1770188498382,0.859,2274.8,2273.7,0.28371389]
[1770188498582,3.8125814,2274.7,2273.7,0.28371389]
[1770188498884,3.8125814,2274.7,2273.7,0.1156723]
[1770188499285,1.4417435,2274.6,2273.7,0.0055723]
[1770188499485,3.8125814,2274.7,2273.7,0.0055723]
[1770188499677,3.8125814,2274.7,2273.7,0.17518729]
[1770188499877,1.4417435,2274.6,2273.7,0.0055723]
[1770188500280,3.8125814,2274.5,2273.7,0.0055723]
[1770188501986,3.8125814,2274.5,2273.7,0.17433811]
[1770188502587,3.8125814,2274.5,2273.7,0.0055723]
[1770188502785,1.4417435,2274.6,2273.7,0.0055723]
[1770188502984,3.8125814,2274.5,2273.7,0.0055723]
[1770188505579,1.4417435,2274.3,2273.3,0.16877955]
[1770188505785,1.4417435,2274.3,2273.1,0.1687895]
[1770188505979,3.8125814,2274.2,2273.1,0.1687895]
[1770188506484,1.4417435,2273.7,2272.5,0.1687895]
[1770188506684,0.00314009,2273.7,2272.5,0.28372142]
[1770188506886,3.8125814,2273.6,2273.1,0.16876719]
[1770188507887,0.00314009,2273.7,2273.1,0.16876719]
[1770188508088,2.74172149,2273.7,2273.1,0.16876719]
[1770188508986,2.74559021,2273.7,2273.1,0.16876719]
[1770188512389,2.74559021,2273.7,2273.3,0.16838287]
[1770188512588,0.00386872,2273.7,2273.3,0.16838287]
[1770188512790,2.74559021,2273.7,2273.3,0.16838287]
[1770188516792,0.86,2274.5,2273.4,0.16807006]
[1770188516994,2.74559021,2274.4,2273.4,0.16807006]
[1770188517189,2.74559021,2274.4,2273.5,0.16800598]
[1770188517392,2.74559021,2274.4,2273.6,0.16800598]
[1770188517792,2.75127889,2274.4,2273.6,0.16800598]
[1770188518494,2.75127889,2274.4,2273.5,0.1101]
[1770188518993,0.0014679,2274.3,2273.5,0.1086321]
[1770188519389,0.0014679,2274.3,2273.2,0.16766184]
[1770188519586,2.74559021,2274.2,2273.2,0.16766184]
[1770188520395,2.74559021,2274.2,2273.0,0.16839579]
[1770188520796,0.00538474,2274.1,2273.0,0.16839579]
[1770188521296,0.00538474,2274.1,2273.0,0.27852579]
[1770188521497,2.74559021,2274.0,2273.1,0.16617484]
[1770188521698,2.74559021,2274.0,2273.1,0.27629484]
[1770188521898,2.74559021,2274.0,2273.2,0.16617484]
[1770188522198,2.75097495,2274.0,2273.2,0.16617484]
[1770188522595,0.00538474,2273.9,2273.2,0.16617484]
[1770188523389,2.74559021,2273.8,2273.2,0.16617484]
[1770188523594,0.00618218,2273.7,2272.8,0.16617484]
[1770188523994,0.00618218,2273.5,2272.6,0.16617484]
[1770188524392,2.74559021,2273.4,2272.7,0.16617484]
[1770188524599,2.75177239,2273.7,2272.7,0.16617484]
[1770188524792,2.74559021,2273.7,2272.8,0.16617484]
[1770188524996,2.74559021,2273.7,2272.9,0.11013]
[1770188525300,2.74559021,2273.7,2273.0,0.16617484]
[1770188527302,0.01101099,2273.6,2272.9,2.72910661]
[1770188527497,0.01101099,2273.6,2272.9,0.11013]
[1770188529402,0.01101099,2273.6,2272.9,0.27630484]
[1770188529603,2.74559021,2273.5,2272.9,0.27630484]
[1770188531601,2.76222275,2273.5,2272.9,0.11013]
[1770188531804,0.01663254,2273.4,2272.9,0.11013]
[1770188532206,2.74559021,2273.3,2272.9,0.11013]
[1770188532806,2.74559021,2273.2,2272.9,0.11013]
[1770188533306,2.74559021,2273.2,2273.0,0.16617484]
[1770188533509,39.25298194,2273.9,2273.2,0.16617484]
[1770188533712,39.25298194,2274.1,2273.4,0.16617484]
[1770188534211,39.27016027,2274.1,2273.4,0.16617484]
[1770188534710,39.25298194,2274.2,2273.4,0.16617484]
[1770188535111,5.26556068,2274.3,2273.4,0.16617484]
[1770188536012,1.4651801,2274.0,2273.3,0.11011]
[1770188538413,0.01624963,2273.9,2273.3,0.11011]
[1770188540814,1.44721725,2274.0,2273.3,0.11011]
[1770188540815,1.44721725,2274.0,2273.3,0.27188008]
[1770188541015,5.28173591,2274.3,2273.4,0.16177008]
[1770188541611,0.01617523,2274.2,2273.3,0.11011]
[1770188541817,6.72895316,2274.2,2273.3,0.27188008]
[1770188542216,39.530127,2274.1,2273.3,0.27188008]
[1770188542514,39.54630223,2274.1,2273.4,0.16177008]
[1770188544717,39.530127,2274.1,2273.4,0.16177008]
[1770188544919,39.530127,2274.2,2273.4,0.16177008]
[1770188547514,0.00568868,2274.4,2273.5,0.1101]
[1770188547720,0.0161547,2274.3,2273.4,2.61897661]
[1770188547921,39.5462817,2274.2,2273.3,0.16177008]
[1770188548523,39.530127,2274.2,2273.3,0.16177008]
[1770188549122,39.530127,2274.3,2273.3,0.16177008]
[1770188549323,39.530127,2274.2,2273.4,0.16177008]
[1770188549719,0.01907286,2274.1,2273.4,0.16177008]
[1770188551719,39.54919986,2274.1,2273.4,0.16177008]
[1770188552124,39.530127,2274.1,2273.4,0.16177008]
[1770188552422,39.530127,2274.2,2273.4,0.16177008]
[1770188554026,39.54877087,2274.2,2273.4,0.16177008]
[1770188554226,39.530127,2274.1,2273.4,0.16177008]
[1770188555328,39.530127,2274.2,2273.4,0.16177008]
[1770188556329,39.530127,2274.2,2273.2,2.61897661]
[1770188556330,42.624127,2274.1,2273.2,0.16177008]
[1770188556524,42.624127,2274.1,2273.4,0.16177008]
[1770188556829,3.094,2274.1,2273.4,0.16177008]
[1770188557730,42.624127,2274.1,2273.4,0.16177008]
[1770188560031,3.094,2274.1,2273.5,0.16177008]
[1770188560631,39.53581568,2274.4,2273.6,0.27187008]
[1770188560831,39.53581568,2274.4,2273.7,0.16177008]
[1770188561135,0.00568868,2274.4,2273.7,0.16177008]
[1770188562530,0.00568868,2274.4,2273.8,0.27186008]
[1770188562735,0.00568868,2274.4,2273.9,0.16177008]
[1770188564530,42.660127,2274.7,2273.9,0.16177008]
[1770188565236,3.13,2274.7,2273.9,0.16177008]
[1770188565638,3.13429376,2274.7,2273.9,0.16177008]
[1770188566737,0.00429376,2274.7,2274.1,0.16177008]
[1770188566938,0.00429376,2274.7,2274.1,0.16670589]
[1770188567539,0.00429376,2274.7,2274.3,0.16177008]
[1770188571237,0.00429376,2274.7,2274.2,0.26685842]
[1770188571437,0.02991769,2274.7,2274.1,0.00493581]
[1770188571836,0.02068812,2274.6,2273.8,0.15678842]
[1770188572034,0.02068812,2274.6,2273.6,0.1101]
[1770188572232,0.02068812,2274.6,2273.6,0.26814719]
[1770188572540,39.55081512,2274.5,2273.6,0.26814719]
[1770188572739,39.55081512,2274.5,2273.7,0.15804719]
[1770188572940,0.02068812,2274.5,2273.7,0.15804719]
[1770188573542,3.14415556,2274.6,2273.7,0.15804719]
[1770188573741,42.67428256,2274.6,2273.7,0.15804719]
[1770188573941,0.01315556,2274.5,2273.6,0.1144271]
[1770188574242,0.01315556,2274.4,2273.6,0.1144271]
[1770188574440,0.01315556,2274.4,2273.6,0.27624057]
[1770188574843,39.54328256,2274.4,2273.6,0.27624057]
[1770188575741,0.01412762,2274.3,2273.6,0.1144271]
[1770188576144,0.01412762,2274.2,2273.6,0.1144271]
[1770188576436,0.01412762,2274.1,2273.4,0.16132744]
[1770188576838,3.15512762,2274.1,2273.4,0.16132744]
[1770188577034,0.0140735,2274.0,2273.1,0.16139219]
[1770188577241,0.0140735,2274.0,2273.0,0.11013]
[1770188577442,0.0140735,2273.9,2273.0,0.11543662]
[1770188577644,0.0140735,2273.8,2273.0,0.00530662]
[1770188577844,39.5442005,2273.7,2272.7,0.16139219]
[1770188578040,3.142,2273.6,2272.7,0.16139219]
[1770188578940,3.142,2273.6,2272.7,0.16521424]
[1770188579240,3.15606234,2273.6,2272.7,0.16521424]
[1770188580444,3.142,2273.6,2272.7,0.27535424]
[1770188580641,39.54418934,2273.8,2272.7,0.11396205]
[1770188580844,3.15606234,2273.8,2272.8,0.16139777]
[1770188581040,0.01387909,2273.7,2272.8,0.16139777]
[1770188581242,0.01387909,2273.7,2272.7,0.11396205]
[1770188581637,0.01005704,2273.5,2272.3,0.16148939]
[1770188581846,0.01005704,2273.3,2272.3,0.16148939]
[1770188582137,0.01005704,2273.6,2272.6,0.16340042]
[1770188582343,0.01005704,2273.6,2272.7,0.16340042]
[1770188582740,0.01005704,2273.6,2272.7,0.16694879]
[1770188583545,0.01005704,2273.6,2272.7,0.00354837]
[1770188583747,0.00993341,2273.3,2272.5,0.16346223]
[1770188584248,3.15393341,2273.2,2272.1,0.16346223]
[1770188584447,0.00993341,2273.1,2272.1,0.16346223]
[1770188584851,0.00993341,2273.1,2272.1,0.27363223]
[1770188585152,3.144,2273.2,2272.3,0.16413342]
[1770188585945,39.53871803,2274.1,2273.0,0.16413342]
[1770188586145,3.144,2274.0,2273.0,0.16413342]
[1770188586345,0.00859103,2273.9,2273.0,0.16413342]
[1770188586950,0.01240925,2273.9,2273.0,0.16413342]
[1770188587249,0.00381822,2273.9,2273.0,0.16413342]
[1770188587648,0.00668372,2273.8,2273.0,0.16413342]
[1770188587849,0.00381822,2273.9,2273.0,0.16413342]
[1770188588453,0.01050194,2273.9,2273.0,0.16413342]
[1770188589246,0.00381822,2273.9,2273.0,0.16413342]
[1770188589954,0.00786391,2273.8,2273.0,0.16413342]
[1770188590449,0.00786391,2273.8,2272.8,0.16449699]
[1770188590650,0.00786391,2273.6,2272.4,0.16449699]
[1770188591254,0.00816138,2273.5,2272.4,0.16449699]
[1770188591454,3.15516138,2273.4,2272.4,0.16449699]
[1770188591650,0.00816138,2273.3,2272.3,0.11358538]
[1770188591855,0.00816138,2273.3,2272.3,0.27793363]
[1770188592054,0.00816138,2273.3,2272.4,0.16434825]
[1770188592854,3.147,2273.4,2272.4,0.16434825]
[1770188595260,0.00816138,2273.6,2272.5,0.16662726]
[1770188595458,3.147,2273.5,2272.5,0.16662726]
[1770188595860,3.147,2273.5,2272.5,0.27677726]
[1770188596058,3.147,2273.5,2272.6,0.16662726]
[1770188598357,3.15243185,2273.5,2272.6,0.16662726]
[1770188600459,0.00570732,2273.4,2272.6,0.16662726]
[1770188603258,42.677127,2273.5,2272.6,0.16662726]
[1770188603762,39.53689162,2273.3,2272.4,0.16506893]
[1770188603967,39.530127,2273.2,2272.4,0.16506893]
[1770188604564,39.530127,2273.1,2272.4,0.16506893]
[1770188605362,39.53680171,2273.0,2272.3,0.00342538]
[1770188605666,39.530127,2273.0,2272.3,0.16853927]
[1770188606665,42.693127,2273.0,2272.3,0.16853927]
[1770188607063,42.693127,2273.0,2272.3,0.00342538]
[1770188607268,39.530127,2272.9,2272.3,0.16852927]
[1770188607768,39.530127,2272.9,2272.3,0.00342538]
[1770188608969,42.693127,2273.0,2272.3,0.16852927]
[1770188609667,5.26556068,2273.1,2272.3,0.27868927]
[1770188609668,39.530127,2273.1,2272.3,0.27868927]
[1770188609970,42.708127,2273.2,2272.4,0.1643842]
[1770188610874,3.184,2273.5,2272.8,0.1643842]
[1770188611770,0.00789048,2273.4,2272.7,0.11014]
[1770188611971,0.00789048,2273.4,2272.7,0.274646]
[1770188612167,0.00789048,2273.4,2272.5,0.164506]
[1770188612370,39.53801748,2273.2,2272.3,0.16793138]
[1770188613469,3.193,2273.1,2272.3,0.16793138]
[1770188615075,3.19958044,2273.1,2272.3,0.16793138]
[1770188615274,0.00658044,2273.0,2272.3,0.16793138]
[1770188615773,39.53670744,2273.0,2272.3,0.16793138]
[1770188616872,0.00607535,2272.8,2272.0,0.16516102]
[1770188617068,3.202,2272.7,2272.0,0.16516102]
[1770188617877,3.202,2272.7,2272.0,0.17022378]
[1770188620879,5.27791113,2272.4,2271.5,0.16227602]
[1770188621180,0.01235045,2272.1,2271.3,0.16227602]
[1770188621379,39.54247745,2272.0,2271.1,0.16227602]
[1770188621583,3.24235045,2271.9,2271.1,0.16227602]
[1770188621884,3.24235045,2271.9,2271.1,0.16694059]
[1770188621885,3.24575363,2271.9,2271.1,0.16694059]
[1770188623176,0.01516374,2271.8,2271.1,0.00466457]
[1770188623382,0.01516374,2271.8,2270.9,0.16086937]
[1770188624277,0.01516374,2271.8,2270.9,0.16436344]
[1770188625581,0.01516374,2271.8,2270.5,0.16270925]
[1770188625782,39.54161099,2271.5,2270.5,0.16270925]
[1770188625980,3.233,2271.4,2270.5,0.16270925]
[1770188626180,3.24448399,2271.4,2270.5,0.16270925]
[1770188626482,0.01148399,2271.3,2270.5,0.16270925]
[1770188626682,0.01148399,2271.3,2270.2,0.16270925]
[1770188627179,42.763127,2271.4,2270.2,0.16270925]
[1770188627386,3.24447452,2271.4,2270.2,0.16270925]
[1770188627684,0.01147452,2271.4,2270.2,0.16808306]
[1770188627983,3.238,2271.3,2270.2,0.16808306]
[1770188628678,0.1605727,2270.6,2268.7,0.22196456]
[1770188628881,0.1605727,2270.0,2268.8,0.11033]
[1770188629182,2.04384218,2270.3,2268.8,0.11033]
[1770188629183,1.0215727,2269.9,2268.8,0.11033]
[1770188629586,0.0052005,2269.9,2269.0,0.11032]
[1770188629885,0.0052005,2269.9,2269.3,8.41149507]
[1770188630085,0.0052005,2269.9,2269.0,0.11032]
[1770188630086,0.0052005,2269.9,2269.5,8.41149507]
[1770188630280,0.0052005,2269.9,2269.1,8.41149507]
[1770188630483,0.1657732,2269.9,2269.1,8.41149507]
[1770188630685,0.1657732,2269.9,2269.0,0.11032]
[1770188630884,0.1657732,2269.9,2269.1,0.15516354]
[1770188631283,0.1657732,2269.9,2268.8,0.00507941]
[1770188631483,0.15777565,2269.6,2268.8,0.00507941]
[1770188631687,0.15777565,2269.6,2268.8,0.16024295]
[1770188631984,2.2118417,2269.3,2268.5,0.26551354]
[1770188632179,0.15777565,2269.2,2268.4,0.15516354]
[1770188632385,0.15777565,2269.2,2268.0,0.15516354]
[1770188633085,0.15777565,2269.2,2268.1,0.15516354]
[1770188633281,0.15777565,2269.2,2268.2,0.15516354]
[1770188633687,0.15777565,2269.2,2268.0,0.11504755]
[1770188634386,0.649,2269.1,2267.6,0.16860454]
[1770188634586,1.51,2269.1,2267.9,0.16860454]
[1770188634788,1.272,2269.2,2268.0,0.16860454]
[1770188635189,1.272,2269.2,2268.0,0.17432702]
[1770188635383,2.05406605,2268.9,2268.0,0.00572248]
[1770188635582,1.272,2269.2,2268.0,0.17443294]
[1770188636989,0.00157357,2269.1,2268.0,0.17443294]
[1770188638289,0.00157357,2269.1,2268.0,0.00572248]
[1770188639790,0.00621382,2268.9,2268.0,0.00572248]
[1770188639989,0.00621382,2268.9,2267.7,0.11039]
[1770188640292,0.00621382,2268.9,2267.7,0.27872689]
[1770188640492,2.05406605,2269.0,2267.8,0.16833689]
[1770188640688,1.272,2269.2,2268.0,0.16833689]
[1770188640889,0.00205553,2269.1,2268.0,0.16833689]
[1770188641085,0.00205553,2269.1,2268.0,0.17153684]
[1770188641590,0.00205553,2269.1,2268.1,0.16755479]
[1770188641892,0.00205553,2269.1,2268.1,2.36485623]
[1770188642094,1.272,2269.2,2268.3,0.16755479]
[1770188642494,1.27405553,2269.2,2268.3,0.16755479]
[1770188642793,1.272,2269.2,2268.4,2.36485623]
[1770188642986,1.27403099,2269.2,2268.4,0.16755479]
[1770188643794,4.407,2269.4,2268.8,0.16756706]
[1770188643994,4.407,2269.4,2268.9,0.16756706]
[1770188644197,4.16568772,2269.4,2269.2,2.3648685]
[1770188644397,4.16568772,2269.4,2269.2,0.16756706]
[1770188644591,0.00723149,2269.9,2269.3,2.19527045]
[1770188644791,0.00723149,2269.9,2268.9,0.16756706]
[1770188645094,0.0052005,2269.9,2269.1,0.16864373]
[1770188647096,0.0052005,2269.9,2269.1,2.36391418]
[1770188648200,0.0052005,2269.9,2269.2,2.36336215]
[1770188648403,0.0052005,2269.9,2269.3,0.1680917]
[1770188649604,0.0052005,2269.9,2269.3,2.36336215]
[1770188650205,0.0052005,2269.9,2269.3,0.1680917]
[1770188650698,0.0052005,2269.9,2269.3,2.36336215]
[1770188651103,0.0052005,2269.9,2269.4,2.36356264]
[1770188651304,0.0052005,2269.9,2269.4,0.16829219]
[1770188651508,0.0052005,2269.9,2269.5,0.16829219]
[1770188652210,0.0052005,2269.9,2269.8,2.36356264]
[1770188652411,0.0052005,2269.9,2269.0,0.11032]
[1770188653607,0.0052005,2269.9,2269.0,0.11521865]
[1770188654303,0.0052005,2269.9,2269.1,0.16276976]
[1770188654610,0.0052005,2269.9,2269.2,0.16276976]
[1770188664910,0.0052005,2269.9,2269.0,0.00489865]
[1770188664911,2.62291542,2269.6,2269.0,0.00489865]
[1770188666007,2.62399809,2269.6,2269.0,0.00489865]
[1770188666710,0.16605042,2269.5,2268.6,0.11034]
[1770188666919,0.16605042,2269.5,2268.7,0.15742139]
[1770188667214,0.16605042,2269.4,2268.7,0.15742139]
[1770188667815,0.16605042,2269.4,2268.7,0.16310494]
[1770188668218,2.62399809,2269.5,2268.7,0.16310494]
[1770188668717,2.62399809,2269.6,2268.7,0.16310494]
[1770188672218,2.62399809,2269.5,2268.7,0.16310494]
[1770188673313,2.62399809,2269.5,2268.8,0.15742139]
[1770188678226,0.0052005,2269.9,2269.3,0.11031]
[1770188679821,0.17352414,2269.9,2269.4,0.1103]
[1770188687427,0.0052005,2269.9,2269.4,0.1103]
[1770188687628,0.17546419,2269.9,2269.4,0.1103]
[1770188692031,0.16806118,2269.4,2268.9,2.63677315]
[1770188692228,0.16806118,2269.4,2268.8,0.11033]
[1770188693931,0.16806118,2269.4,2268.3,2.63890649]
[1770188694134,0.16806118,2269.4,2268.8,0.11033]
[1770188694332,0.16806118,2269.4,2268.3,2.63890649]
[1770188695036,0.16806118,2269.4,2268.4,0.11302224]
[1770188695234,0.16806118,2269.4,2268.6,0.00267224]
[1770188695438,0.16806118,2269.4,2268.4,0.00267224]
[1770188696532,0.16806118,2269.4,2268.6,0.11034]
[1770188697341,0.16806118,2269.4,2268.6,0.11114589]
[1770188697843,0.16806118,2269.4,2268.7,0.11034]
[1770188698937,6.48837873,2269.9,2268.9,0.11033]
[1770188698938,0.17034968,2269.8,2268.9,0.11033]
[1770188701832,0.17034968,2269.8,2268.7,2.63677315]
[1770188702038,0.17034968,2269.8,2268.8,2.63677315]
[1770188702538,0.17034968,2269.8,2268.8,3.49877315]
[1770188702838,0.17553053,2269.9,2269.2,0.11031]
[1770188703045,0.17059636,2270.2,2269.5,0.1103]
[1770188704145,0.17460854,2270.2,2269.5,0.1103]
[1770188704440,0.1550848,2270.0,2268.8,2.74298092]
[1770188704639,0.1550848,2269.9,2269.0,0.21652777]
[1770188704946,0.1550848,2269.9,2269.2,0.10620777]
[1770188705245,0.1550848,2269.9,2269.1,0.11032]
[1770188706540,0.1550848,2269.8,2268.8,2.63498652]
[1770188706745,0.1550848,2269.8,2268.6,0.11034]
[1770188706746,0.1550848,2269.7,2268.6,0.11034]
[1770188707141,0.1550848,2269.7,2268.7,0.11034]
[1770188707345,0.1550848,2269.7,2268.7,0.20353103]
[1770188707645,0.1550848,2269.6,2268.7,0.20353103]
[1770188709246,0.1550848,2269.8,2268.9,0.20288509]
[1770188709547,0.1550848,2269.8,2269.0,0.09255509]
[1770188710843,0.1550848,2269.8,2269.0,0.20287509]
[1770188711241,0.1550848,2269.8,2269.0,0.11032]
[1770188717850,5.26556068,2270.1,2269.2,0.09688927]
[1770188717851,39.54001186,2270.1,2269.2,0.09688927]
[1770188718150,39.54001186,2270.1,2268.9,2.63498652]
[1770188718151,0.1550848,2270.1,2269.3,0.11031]
[1770188720549,0.1550848,2270.1,2269.3,0.2104043]
[1770188721455,0.1550848,2270.1,2269.3,0.11031]
[1770188723558,0.1550848,2270.1,2269.3,0.20930245]
[1770188726853,0.16511671,2270.2,2269.5,0.1103]
[1770188728059,0.16511671,2270.2,2269.6,0.11029]
[1770188729662,1e-08,2270.2,2269.7,0.20888382]
[1770188730059,0.16110454,2270.2,2269.7,0.11029]
[1770188730758,1e-08,2270.2,2269.8,0.11028]
[1770188731857,0.16110453,2270.9,2270.1,0.09882131]
[1770188732155,0.16110453,2270.9,2270.2,0.11027]
[1770188732761,0.16551242,2270.9,2270.3,0.11026]
[1770188733562,0.16110453,2270.8,2269.7,2.74527652]
[1770188733762,0.16110453,2270.8,2269.7,0.11029]
[1770188733959,0.16110453,2270.7,2269.7,0.11029]
[1770188734660,0.16110453,2270.7,2269.8,0.11029]
[1770188738564,0.16110453,2270.7,2269.9,0.11028]
[1770188739066,0.16110453,2270.7,2269.7,0.10383462]
[1770188739067,0.16110453,2270.7,2270.0,0.11028]
[1770188740166,0.16110453,2270.7,2270.1,0.11027]
[1770188740465,39.55043948,2270.9,2270.1,0.20873616]
[1770188740666,0.16110453,2270.8,2270.1,0.20873616]
[1770188741968,0.16110453,2270.8,2270.1,0.11027]
[1770188743467,0.16110453,2270.8,2270.2,0.11027]
[1770188744871,0.00440789,2270.9,2270.2,0.21167506]
[1770188745266,0.16551242,2270.9,2270.2,0.21167506]
[1770188746169,0.16551242,2270.9,2270.3,0.11026]
[1770188750376,0.16110453,2270.4,2269.7,0.11546274]
[1770188752375,0.15287965,2270.0,2269.7,0.11546274]
[1770188762385,1.45155755,2270.1,2269.7,0.11546274]
[1770188762589,0.15262413,2270.4,2269.9,0.11028]
[1770188762790,1.10079861,2270.4,2269.9,0.11028]
[1770188763190,1.10079861,2270.4,2269.9,0.22883879]
[1770188763691,0.94817448,2270.4,2270.0,0.11855879]
[1770188764390,0.94817448,2270.4,2269.9,0.22883879]
[1770188765191,1.10079861,2270.4,2269.9,0.11028]
[1770188765391,0.15262413,2270.2,2269.9,0.11028]
[1770188765690,0.15262413,2270.2,2269.7,0.00517274]
[1770188765890,1.10079861,2270.1,2269.7,0.00517274]
[1770188766494,1.45155755,2269.8,2269.3,0.11031]
[1770188766792,0.15262413,2269.7,2269.3,0.11031]
[1770188767386,1.45155755,2269.8,2269.0,4.80448182]
[1770188767387,1.10079861,2269.6,2269.0,0.861]
[1770188767786,0.94817448,2269.6,2269.1,0.12043054]
[1770188768092,1.10079861,2269.6,2269.0,0.861]
[1770188768393,0.15262413,2269.6,2269.0,0.86417335]
[1770188768691,0.15262413,2269.8,2269.3,0.11031]
[1770188771894,0.15262413,2269.6,2269.3,0.11031]
[1770188772790,0.15262413,2269.4,2269.0,0.00317335]
[1770188773095,0.15262413,2269.4,2268.6,0.23051311]
[1770188773300,1.10079861,2269.3,2268.6,0.23051311]
[1770188774194,0.15262413,2269.2,2268.6,0.23443951]
[1770188774590,0.15262413,2269.0,2268.6,0.1142664]
[1770188775296,1.10079861,2268.9,2268.6,0.1142664]
[1770188775595,0.15262413,2268.9,2268.6,0.1142664]
[1770188775795,0.15262413,2268.8,2268.6,0.1142664]
[1770188775993,0.15262413,2268.7,2267.9,0.1180705]
[1770188776197,0.15262413,2268.6,2268.0,0.11037]
[1770188776998,0.15262413,2268.6,2268.0,0.11535488]
[1770188778395,0.15262413,2268.6,2267.5,0.11695386]
[1770188778396,0.15262413,2268.4,2267.5,0.11695386]
[1770188778692,1.60418168,2268.4,2267.3,4.06043568]
[1770188778896,0.15262413,2268.2,2267.5,1.57505719]
[1770188779491,0.15262413,2268.2,2267.5,1.57895061]
[1770188779695,1.10079861,2268.1,2267.5,0.12739306]
[1770188779899,0.15262413,2268.1,2267.5,0.12739306]
[1770188780299,0.94817448,2268.0,2267.5,0.00389342]
[1770188780496,0.15262413,2267.9,2267.5,0.00389342]
[1770188780702,0.15262413,2267.9,2267.1,2.43713535]
[1770188780896,0.16315277,2267.7,2267.1,2.43713535]
[1770188781104,0.16315277,2267.7,2266.9,2.43381475]
[1770188781403,0.16315277,2267.5,2266.7,1.68225475]
[1770188781704,0.16802072,2267.5,2266.7,0.00314637]
[1770188781902,0.16315277,2267.3,2266.3,0.1202572]
[1770188782103,0.16315277,2267.1,2266.2,1.45155755]
[1770188782296,0.16315277,2267.1,2266.1,0.1202572]
[1770188782499,0.16315277,2266.7,2265.6,1.57181475]
[1770188782703,0.16315277,2266.5,2265.6,1.57181475]
[1770188782903,0.862,2267.4,2266.4,1.569732]
[1770188782904,0.16315277,2267.4,2266.4,1.569732]
[1770188783105,0.16315277,2267.4,2266.6,1.45155755]
[1770188783500,0.16315277,2267.2,2266.4,0.00378962]
[1770188784104,0.16315277,2267.2,2266.4,1.45534717]
[1770188784400,0.16315277,2267.2,2266.4,0.12196407]
[1770188786004,0.16802072,2267.5,2266.4,0.12196407]
[1770188787403,0.16802072,2267.5,2266.4,0.00378962]
[1770188787600,0.16802072,2267.5,2266.5,0.11044]
[1770188789505,0.16802072,2267.5,2266.5,0.20962279]
[1770188789805,0.16802072,2267.5,2266.6,0.09918279]
[1770188790212,0.16802072,2267.5,2266.6,0.20962279]
[1770188790704,0.16802072,2267.5,2266.6,0.11044]
[1770188792609,0.00486795,2267.5,2266.6,0.09999128]
[1770188793104,0.16315277,2268.8,2267.6,0.11039]
[1770188794207,0.16775303,2268.8,2267.6,0.11039]
[1770188796306,0.16775303,2268.8,2267.7,0.11039]
[1770188797107,0.16775303,2268.8,2267.9,0.11038]
[1770188798004,0.16775303,2268.8,2268.1,0.11036]
[1770188798205,0.16775303,2268.8,2268.1,0.00506237]
[1770188798511,0.16775303,2268.8,2268.3,0.11036]
[1770188800812,4.413,2269.4,2268.3,0.27230788]
[1770188801312,4.413,2269.4,2268.3,0.11036]
[1770188801913,4.41654783,2269.4,2268.3,0.11036]
[1770188802813,0.16315277,2269.3,2268.3,0.11036]
[1770188808106,0.16315277,2269.2,2268.3,0.11036]
[1770188808913,0.16315277,2269.2,2268.4,0.11035]
[1770188809115,0.16315277,2269.2,2268.5,0.11035]
[1770188809409,0.16315277,2269.2,2268.6,0.11034]
[1770188813409,0.16315277,2269.2,2268.1,0.16149515]
[1770188813708,0.16315277,2269.2,2268.1,0.00506237]
[1770188813913,0.16437086,2268.9,2267.9,0.11038]
[1770188814107,0.16437086,2268.8,2267.9,0.11038]
[1770188814509,0.16437086,2268.8,2267.3,0.15643278]
[1770188814706,0.16437086,2268.7,2267.3,0.15643278]
[1770188814906,0.16437086,2268.7,2267.5,0.1104]
[1770188815314,0.16437086,2268.5,2267.5,0.1104]
[1770188815514,2.79793996,2268.4,2267.3,0.00554226]
[1770188815715,0.1320112,2268.0,2266.9,0.15643278]
[1770188815915,0.1320112,2267.9,2266.9,0.15643278]
[1770188816310,0.1320112,2267.9,2266.9,0.26686278]
[1770188816615,0.1320112,2267.8,2266.9,0.26686278]
[1770188816816,0.13559365,2267.8,2267.0,0.11042]
[1770188817718,0.00358245,2267.8,2267.4,0.15353003]
[1770188818011,0.00358245,2267.8,2267.4,0.26393003]
[1770188818217,3.29275537,2268.3,2267.5,0.15353003]
[1770188818514,0.12775537,2268.2,2267.4,0.1104]
[1770188819116,0.13261629,2268.2,2267.4,0.1104]
[1770188819816,0.1291506,2268.1,2267.4,0.1104]
[1770188820617,2.63843002,2268.2,2266.9,0.00564855]
[1770188820817,0.00486092,2268.2,2266.9,0.00564855]
[1770188821121,0.00486092,2268.2,2267.7,0.11039]
[1770188821313,0.00486092,2268.2,2267.0,10.322]
[1770188821515,0.00486092,2268.2,2267.8,0.11038]
[1770188822213,0.16018791,2268.2,2267.8,0.11038]
[1770188822519,0.00486092,2268.2,2267.8,0.11038]
[1770188823618,0.00486092,2268.2,2267.8,0.26391003]
[1770188824218,0.16018791,2268.2,2267.0,3.94348182]
[1770188824420,0.06635759,2267.7,2266.9,0.15917858]
[1770188824614,0.06635759,2267.7,2266.6,0.11044]
[1770188825715,0.06635759,2267.7,2266.6,0.11469556]
[1770188826523,0.15532699,2267.9,2266.6,0.00425556]
[1770188826717,0.15532699,2267.9,2266.7,0.15353003]